Workbook

Sheet Sheet1
B1: Newton Difference Quotients
B3: This graphing utility lets you investigate
B4: the Newton Difference Quotients
B5: and how they converge to the tangent line
C6: for any desired function
D7: y = f(x)
B8: on any interval from x = a to x = b.
A11: Enter the function in terms of x: f(x) = | E11: x^3-7*x+4
A14: Now enter the interval for x:
D15: xMin = | E15: -4
D16: xMax = | E16: 4
A20: What is the step-size h = Dx (0.01 to 0.50)? | E20: =D21/100 -> 0.32 | M20: The graph of the function y = | P20: =E11 -> x^3-7*x+4
D21: 32
M23: Select a point on the curve: a = | Q23: =P25 -> -3.12
A24: Click each item below for suggestions and investigations
D25: Item 1 | O25: 11 | P25: =E15+O25*(E16-E15)/100 -> -3.12
D26: Item 2
D27: Item 3
M28: The difference quotient at x = a = | Q28: =P25 -> -3.12
O29: is equal to | Q29: =DiffQuot -> 19.31
A31: To access/download all the DIGMath Apps for Calculus | M31: The slope of the tangent line at x = a = | Q31: =P25 -> -3.12
A32: Click this link: | C32: DIGMath for Calculus | M32: = the derivative f '( a) = | Q32: =LOOKUP(x0,Sheet2!A3:A1003,Sheet2!C3:C1003) -> 22.14489706
A34: Created by: Sheldon P. Gordon
A35: Farmingdale State College
A36: Development of this module was supported by the
A37: NSF's Division of Undergraduate Education
A38: under grants DUE-0310123 and DUE-0442160.

Sheet Sheet2
A1: x | B1: f(x) | C1: slope | F1: xl= | G1: =IF(Sheet1!$P$25<Sheet1!E15+80*Sheet2!G5,Sheet1!E15,Sheet1!P25-80*Sheet2!G5) -> -3.759360639 | H1: =LOOKUP(Sheet1!P25,Sheet2!A3:A1002,Sheet2!B3:B1002)+LOOKUP(Sheet1!P25,Sheet2!A3:A1002,Sheet2!C3:C1002)*(G1-Sheet1!P25) -> -18.70943007 | I1: "=yl
F2: xr= | G2: =IF(Sheet1!$P$25>Sheet1!E16-80*Sheet2!G5,Sheet1!E16,Sheet1!P25+80*Sheet2!G5) -> -2.480639361 | H2: =LOOKUP(Sheet1!P25,Sheet2!A3:A1003,Sheet2!B3:B1003)+LOOKUP(Sheet1!P25,Sheet2!A3:A1003,Sheet2!C3:C1003)*(G2-Sheet1!P25) -> 9.607721012 | I2: "=yR
A3: =xMin -> -4.00 | B3: =x^3-7*x+4 -> -32 | C3: =(B4-B3)/Sheet2!$G$5 -> 40.90415978
A4: =A3+Sheet2!G$5 -> -3.99 | B4: -31.67309363 | C4: =(B5-B4)/Sheet2!$G$5 -> 40.71273482
A5: =A4+Sheet2!G$5 -> -3.98 | B5: -31.34771713 | C5: =(B6-B5)/Sheet2!$G$5 -> 40.52169309 | F5: delta x = | G5: =(Sheet1!E16-Sheet1!E15)/1001 -> 0.007992007992
A6: =A5+Sheet2!G$5 -> -3.98 | B6: -31.02386743 | C6: =(B7-B6)/Sheet2!$G$5 -> 40.3310346
A7: =A6+Sheet2!G$5 -> -3.97 | B7: -30.70154148 | C7: =(B8-B7)/Sheet2!$G$5 -> 40.14075934
A8: =A7+Sheet2!G$5 -> -3.96 | B8: -30.38073621 | C8: =(B9-B8)/Sheet2!$G$5 -> 39.95086731 | F8: Difference Quotient
A9: =A8+Sheet2!G$5 -> -3.95 | B9: -30.06144856 | C9: =(B10-B9)/Sheet2!$G$5 -> 39.76135852 | F9: xl= | G9: =x0 -> -3.12 | H9: =LOOKUP(x0,Sheet2!A3:A1003,Sheet2!B3:B1003) -> -4.550854531 | I9: "=yl
A10: =A9+Sheet2!G$5 -> -3.94 | B10: -29.74367546 | C10: =(B11-B10)/Sheet2!$G$5 -> 39.57223296 | F10: xr= | G10: =x0+h -> -2.8 | H10: =B1004+DiffQuot*h -> 1.648 | I10: "=yR
A11: =A10+Sheet2!G$5 -> -3.94 | B11: -29.42741386 | C11: =(B12-B11)/Sheet2!$G$5 -> 39.38349064 | G11: =G10 -> -2.8 | H11: =H9 -> -4.550854531
A12: =A11+Sheet2!G$5 -> -3.93 | B12: -29.11266069 | C12: =(B13-B12)/Sheet2!$G$5 -> 39.19513154 | G12: =G9 -> -3.12 | H12: =H11 -> -4.550854531
A13: =A12+Sheet2!G$5 -> -3.92 | B13: -28.79941289 | C13: =(B14-B13)/Sheet2!$G$5 -> 39.00715568
A14: =A13+Sheet2!G$5 -> -3.91 | B14: -28.48766739 | C14: =(B15-B14)/Sheet2!$G$5 -> 38.81956305
A15: =A14+Sheet2!G$5 -> -3.90 | B15: -28.17742113 | C15: =(B16-B15)/Sheet2!$G$5 -> 38.63235366
A16: =A15+Sheet2!G$5 -> -3.90 | B16: -27.86867105 | C16: =(B17-B16)/Sheet2!$G$5 -> 38.4455275
A17: =A16+Sheet2!G$5 -> -3.89 | B17: -27.56141409 | C17: =(B18-B17)/Sheet2!$G$5 -> 38.25908457
A18: =A17+Sheet2!G$5 -> -3.88 | B18: -27.25564718 | C18: =(B19-B18)/Sheet2!$G$5 -> 38.07302488
A19: =A18+Sheet2!G$5 -> -3.87 | B19: -26.95136726 | C19: =(B20-B19)/Sheet2!$G$5 -> 37.88734842
A20: =A19+Sheet2!G$5 -> -3.86 | B20: -26.64857127 | C20: =(B21-B20)/Sheet2!$G$5 -> 37.70205519
A21: =A20+Sheet2!G$5 -> -3.86 | B21: -26.34725614 | C21: =(B22-B21)/Sheet2!$G$5 -> 37.51714519
A22: =A21+Sheet2!G$5 -> -3.85 | B22: -26.04741882 | C22: =(B23-B22)/Sheet2!$G$5 -> 37.33261843
A23: =A22+Sheet2!G$5 -> -3.84 | B23: -25.74905623 | C23: =(B24-B23)/Sheet2!$G$5 -> 37.1484749
A24: =A23+Sheet2!G$5 -> -3.83 | B24: -25.45216532 | C24: =(B25-B24)/Sheet2!$G$5 -> 36.96471461
A25: =A24+Sheet2!G$5 -> -3.82 | B25: -25.15674303 | C25: =(B26-B25)/Sheet2!$G$5 -> 36.78133754
A26: =A25+Sheet2!G$5 -> -3.82 | B26: -24.86278628 | C26: =(B27-B26)/Sheet2!$G$5 -> 36.59834371
A27: =A26+Sheet2!G$5 -> -3.81 | B27: -24.57029203 | C27: =(B28-B27)/Sheet2!$G$5 -> 36.41573312
A28: =A27+Sheet2!G$5 -> -3.80 | B28: -24.2792572 | C28: =(B29-B28)/Sheet2!$G$5 -> 36.23350575
A29: =A28+Sheet2!G$5 -> -3.79 | B29: -23.98967873 | C29: =(B30-B29)/Sheet2!$G$5 -> 36.05166163
A30: =A29+Sheet2!G$5 -> -3.78 | B30: -23.70155356 | C30: =(B31-B30)/Sheet2!$G$5 -> 35.87020073
A31: =A30+Sheet2!G$5 -> -3.78 | B31: -23.41487863 | C31: =(B32-B31)/Sheet2!$G$5 -> 35.68912306
A32: =A31+Sheet2!G$5 -> -3.77 | B32: -23.12965088 | C32: =(B33-B32)/Sheet2!$G$5 -> 35.50842863
A33: =A32+Sheet2!G$5 -> -3.76 | B33: -22.84586723 | C33: =(B34-B33)/Sheet2!$G$5 -> 35.32811744
A34: =A33+Sheet2!G$5 -> -3.75 | B34: -22.56352463 | C34: =(B35-B34)/Sheet2!$G$5 -> 35.14818947
A35: =A34+Sheet2!G$5 -> -3.74 | B35: -22.28262002 | C35: =(B36-B35)/Sheet2!$G$5 -> 34.96864474
A36: =A35+Sheet2!G$5 -> -3.74 | B36: -22.00315033 | C36: =(B37-B36)/Sheet2!$G$5 -> 34.78948324
A37: =A36+Sheet2!G$5 -> -3.73 | B37: -21.72511251 | C37: =(B38-B37)/Sheet2!$G$5 -> 34.61070498
A38: =A37+Sheet2!G$5 -> -3.72 | B38: -21.44850347 | C38: =(B39-B38)/Sheet2!$G$5 -> 34.43230995
A39: =A38+Sheet2!G$5 -> -3.71 | B39: -21.17332018 | C39: =(B40-B39)/Sheet2!$G$5 -> 34.25429815
A40: =A39+Sheet2!G$5 -> -3.70 | B40: -20.89955955 | C40: =(B41-B40)/Sheet2!$G$5 -> 34.07666958
A41: =A40+Sheet2!G$5 -> -3.70 | B41: -20.62721854 | C41: =(B42-B41)/Sheet2!$G$5 -> 33.89942425
A42: =A41+Sheet2!G$5 -> -3.69 | B42: -20.35629407 | C42: =(B43-B42)/Sheet2!$G$5 -> 33.72256215
A43: =A42+Sheet2!G$5 -> -3.68 | B43: -20.08678308 | C43: =(B44-B43)/Sheet2!$G$5 -> 33.54608329
A44: =A43+Sheet2!G$5 -> -3.67 | B44: -19.81868252 | C44: =(B45-B44)/Sheet2!$G$5 -> 33.36998765
A45: =A44+Sheet2!G$5 -> -3.66 | B45: -19.55198931 | C45: =(B46-B45)/Sheet2!$G$5 -> 33.19427526
A46: =A45+Sheet2!G$5 -> -3.66 | B46: -19.2867004 | C46: =(B47-B46)/Sheet2!$G$5 -> 33.01894609
A47: =A46+Sheet2!G$5 -> -3.65 | B47: -19.02281271 | C47: =(B48-B47)/Sheet2!$G$5 -> 32.84400016
A48: =A47+Sheet2!G$5 -> -3.64 | B48: -18.7603232 | C48: =(B49-B48)/Sheet2!$G$5 -> 32.66943746
A49: =A48+Sheet2!G$5 -> -3.63 | B49: -18.4992288 | C49: =(B50-B49)/Sheet2!$G$5 -> 32.49525799
A50: =A49+Sheet2!G$5 -> -3.62 | B50: -18.23952644 | C50: =(B51-B50)/Sheet2!$G$5 -> 32.32146176
A51: =A50+Sheet2!G$5 -> -3.62 | B51: -17.98121306 | C51: =(B52-B51)/Sheet2!$G$5 -> 32.14804875
A52: =A51+Sheet2!G$5 -> -3.61 | B52: -17.72428559 | C52: =(B53-B52)/Sheet2!$G$5 -> 31.97501899
A53: =A52+Sheet2!G$5 -> -3.60 | B53: -17.46874099 | C53: =(B54-B53)/Sheet2!$G$5 -> 31.80237245
A54: =A53+Sheet2!G$5 -> -3.59 | B54: -17.21457617 | C54: =(B55-B54)/Sheet2!$G$5 -> 31.63010915
A55: =A54+Sheet2!G$5 -> -3.58 | B55: -16.96178809 | C55: =(B56-B55)/Sheet2!$G$5 -> 31.45822908
A56: =A55+Sheet2!G$5 -> -3.58 | B56: -16.71037367 | C56: =(B57-B56)/Sheet2!$G$5 -> 31.28673225
A57: =A56+Sheet2!G$5 -> -3.57 | B57: -16.46032985 | C57: =(B58-B57)/Sheet2!$G$5 -> 31.11561865
A58: =A57+Sheet2!G$5 -> -3.56 | B58: -16.21165358 | C58: =(B59-B58)/Sheet2!$G$5 -> 30.94488828
A59: =A58+Sheet2!G$5 -> -3.55 | B59: -15.96434179 | C59: =(B60-B59)/Sheet2!$G$5 -> 30.77454114
A60: =A59+Sheet2!G$5 -> -3.54 | B60: -15.71839141 | C60: =(B61-B60)/Sheet2!$G$5 -> 30.60457724
A61: =A60+Sheet2!G$5 -> -3.54 | B61: -15.47379938 | C61: =(B62-B61)/Sheet2!$G$5 -> 30.43499657
A62: =A61+Sheet2!G$5 -> -3.53 | B62: -15.23056265 | C62: =(B63-B62)/Sheet2!$G$5 -> 30.26579914
A63: =A62+Sheet2!G$5 -> -3.52 | B63: -14.98867814 | C63: =(B64-B63)/Sheet2!$G$5 -> 30.09698493
A64: =A63+Sheet2!G$5 -> -3.51 | B64: -14.74814279 | C64: =(B65-B64)/Sheet2!$G$5 -> 29.92855396
A65: =A64+Sheet2!G$5 -> -3.50 | B65: -14.50895355 | C65: =(B66-B65)/Sheet2!$G$5 -> 29.76050623
A66: =A65+Sheet2!G$5 -> -3.50 | B66: -14.27110735 | C66: =(B67-B66)/Sheet2!$G$5 -> 29.59284172
A67: =A66+Sheet2!G$5 -> -3.49 | B67: =x^3-7*x+4 -> -14.03460112 | C67: =(B68-B67)/Sheet2!$G$5 -> 29.42556045
A68: =A67+Sheet2!G$5 -> -3.48 | B68: -13.7994318 | C68: =(B69-B68)/Sheet2!$G$5 -> 29.25866242
A69: =A68+Sheet2!G$5 -> -3.47 | B69: -13.56559634 | C69: =(B70-B69)/Sheet2!$G$5 -> 29.09214761
A70: =A69+Sheet2!G$5 -> -3.46 | B70: -13.33309166 | C70: =(B71-B70)/Sheet2!$G$5 -> 28.92601604
A71: =A70+Sheet2!G$5 -> -3.46 | B71: -13.10191471 | C71: =(B72-B71)/Sheet2!$G$5 -> 28.7602677
A72: =A71+Sheet2!G$5 -> -3.45 | B72: -12.87206242 | C72: =(B73-B72)/Sheet2!$G$5 -> 28.5949026
A73: =A72+Sheet2!G$5 -> -3.44 | B73: -12.64353173 | C73: =(B74-B73)/Sheet2!$G$5 -> 28.42992073
A74: =A73+Sheet2!G$5 -> -3.43 | B74: -12.41631958 | C74: =(B75-B74)/Sheet2!$G$5 -> 28.26532209
A75: =A74+Sheet2!G$5 -> -3.42 | B75: -12.1904229 | C75: =(B76-B75)/Sheet2!$G$5 -> 28.10110669
A76: =A75+Sheet2!G$5 -> -3.42 | B76: -11.96583863 | C76: =(B77-B76)/Sheet2!$G$5 -> 27.93727451
A77: =A76+Sheet2!G$5 -> -3.41 | B77: -11.74256371 | C77: =(B78-B77)/Sheet2!$G$5 -> 27.77382558
A78: =A77+Sheet2!G$5 -> -3.40 | B78: -11.52059507 | C78: =(B79-B78)/Sheet2!$G$5 -> 27.61075987
A79: =A78+Sheet2!G$5 -> -3.39 | B79: -11.29992966 | C79: =(B80-B79)/Sheet2!$G$5 -> 27.4480774
A80: =A79+Sheet2!G$5 -> -3.38 | B80: -11.08056441 | C80: =(B81-B80)/Sheet2!$G$5 -> 27.28577816
A81: =A80+Sheet2!G$5 -> -3.38 | B81: -10.86249625 | C81: =(B82-B81)/Sheet2!$G$5 -> 27.12386215
A82: =A81+Sheet2!G$5 -> -3.37 | B82: -10.64572213 | C82: =(B83-B82)/Sheet2!$G$5 -> 26.96232938
A83: =A82+Sheet2!G$5 -> -3.36 | B83: -10.43023897 | C83: =(B84-B83)/Sheet2!$G$5 -> 26.80117984
A84: =A83+Sheet2!G$5 -> -3.35 | B84: -10.21604373 | C84: =(B85-B84)/Sheet2!$G$5 -> 26.64041353
A85: =A84+Sheet2!G$5 -> -3.34 | B85: -10.00313333 | C85: =(B86-B85)/Sheet2!$G$5 -> 26.48003046
A86: =A85+Sheet2!G$5 -> -3.34 | B86: -9.791504718 | C86: =(B87-B86)/Sheet2!$G$5 -> 26.32003062
A87: =A86+Sheet2!G$5 -> -3.33 | B87: -9.581154822 | C87: =(B88-B87)/Sheet2!$G$5 -> 26.16041401
A88: =A87+Sheet2!G$5 -> -3.32 | B88: -9.372080585 | C88: =(B89-B88)/Sheet2!$G$5 -> 26.00118064
A89: =A88+Sheet2!G$5 -> -3.31 | B89: -9.164278941 | C89: =(B90-B89)/Sheet2!$G$5 -> 25.8423305
A90: =A89+Sheet2!G$5 -> -3.30 | B90: -8.957746829 | C90: =(B91-B90)/Sheet2!$G$5 -> 25.68386359
A91: =A90+Sheet2!G$5 -> -3.30 | B91: -8.752481186 | C91: =(B92-B91)/Sheet2!$G$5 -> 25.52577991
A92: =A91+Sheet2!G$5 -> -3.29 | B92: -8.548478949 | C92: =(B93-B92)/Sheet2!$G$5 -> 25.36807947
A93: =A92+Sheet2!G$5 -> -3.28 | B93: -8.345737055 | C93: =(B94-B93)/Sheet2!$G$5 -> 25.21076226
A94: =A93+Sheet2!G$5 -> -3.27 | B94: -8.144252442 | C94: =(B95-B94)/Sheet2!$G$5 -> 25.05382829
A95: =A94+Sheet2!G$5 -> -3.26 | B95: -7.944022046 | C95: =(B96-B95)/Sheet2!$G$5 -> 24.89727755
A96: =A95+Sheet2!G$5 -> -3.26 | B96: -7.745042805 | C96: =(B97-B96)/Sheet2!$G$5 -> 24.74111004
A97: =A96+Sheet2!G$5 -> -3.25 | B97: -7.547311656 | C97: =(B98-B97)/Sheet2!$G$5 -> 24.58532576
A98: =A97+Sheet2!G$5 -> -3.24 | B98: -7.350825536 | C98: =(B99-B98)/Sheet2!$G$5 -> 24.42992472
A99: =A98+Sheet2!G$5 -> -3.23 | B99: -7.155581382 | C99: =(B100-B99)/Sheet2!$G$5 -> 24.27490691
A100: =A99+Sheet2!G$5 -> -3.22 | B100: -6.961576132 | C100: =(B101-B100)/Sheet2!$G$5 -> 24.12027234
A101: =A100+Sheet2!G$5 -> -3.22 | B101: -6.768806723 | C101: =(B102-B101)/Sheet2!$G$5 -> 23.96602099
A102: =A101+Sheet2!G$5 -> -3.21 | B102: -6.577270091 | C102: =(B103-B102)/Sheet2!$G$5 -> 23.81215288
A103: =A102+Sheet2!G$5 -> -3.20 | B103: -6.386963175 | C103: =(B104-B103)/Sheet2!$G$5 -> 23.65866801
A104: =A103+Sheet2!G$5 -> -3.19 | B104: -6.197882911 | C104: =(B105-B104)/Sheet2!$G$5 -> 23.50556636
A105: =A104+Sheet2!G$5 -> -3.18 | B105: -6.010026237 | C105: =(B106-B105)/Sheet2!$G$5 -> 23.35284795
A106: =A105+Sheet2!G$5 -> -3.18 | B106: -5.82339009 | C106: =(B107-B106)/Sheet2!$G$5 -> 23.20051277
A107: =A106+Sheet2!G$5 -> -3.17 | B107: -5.637971406 | C107: =(B108-B107)/Sheet2!$G$5 -> 23.04856083
A108: =A107+Sheet2!G$5 -> -3.16 | B108: -5.453767124 | C108: =(B109-B108)/Sheet2!$G$5 -> 22.89699212
A109: =A108+Sheet2!G$5 -> -3.15 | B109: -5.27077418 | C109: =(B110-B109)/Sheet2!$G$5 -> 22.74580664
A110: =A109+Sheet2!G$5 -> -3.14 | B110: -5.088989511 | C110: =(B111-B110)/Sheet2!$G$5 -> 22.5950044
A111: =A110+Sheet2!G$5 -> -3.14 | B111: -4.908410056 | C111: =(B112-B111)/Sheet2!$G$5 -> 22.44458538
A112: =A111+Sheet2!G$5 -> -3.13 | B112: -4.72903275 | C112: =(B113-B112)/Sheet2!$G$5 -> 22.29454961
A113: =A112+Sheet2!G$5 -> -3.12 | B113: -4.550854531 | C113: =(B114-B113)/Sheet2!$G$5 -> 22.14489706
A114: =A113+Sheet2!G$5 -> -3.11 | B114: -4.373872337 | C114: =(B115-B114)/Sheet2!$G$5 -> 21.99562775
A115: =A114+Sheet2!G$5 -> -3.10 | B115: -4.198083104 | C115: =(B116-B115)/Sheet2!$G$5 -> 21.84674167
A116: =A115+Sheet2!G$5 -> -3.10 | B116: -4.02348377 | C116: =(B117-B116)/Sheet2!$G$5 -> 21.69823882
A117: =A116+Sheet2!G$5 -> -3.09 | B117: -3.850071272 | C117: =(B118-B117)/Sheet2!$G$5 -> 21.55011921
A118: =A117+Sheet2!G$5 -> -3.08 | B118: -3.677842547 | C118: =(B119-B118)/Sheet2!$G$5 -> 21.40238283
A119: =A118+Sheet2!G$5 -> -3.07 | B119: -3.506794533 | C119: =(B120-B119)/Sheet2!$G$5 -> 21.25502969
A120: =A119+Sheet2!G$5 -> -3.06 | B120: -3.336924165 | C120: =(B121-B120)/Sheet2!$G$5 -> 21.10805977
A121: =A120+Sheet2!G$5 -> -3.06 | B121: -3.168228383 | C121: =(B122-B121)/Sheet2!$G$5 -> 20.96147309
A122: =A121+Sheet2!G$5 -> -3.05 | B122: -3.000704123 | C122: =(B123-B122)/Sheet2!$G$5 -> 20.81526965
A123: =A122+Sheet2!G$5 -> -3.04 | B123: -2.834348321 | C123: =(B124-B123)/Sheet2!$G$5 -> 20.66944943
A124: =A123+Sheet2!G$5 -> -3.03 | B124: -2.669157916 | C124: =(B125-B124)/Sheet2!$G$5 -> 20.52401245
A125: =A124+Sheet2!G$5 -> -3.02 | B125: -2.505129845 | C125: =(B126-B125)/Sheet2!$G$5 -> 20.3789587
A126: =A125+Sheet2!G$5 -> -3.02 | B126: -2.342261044 | C126: =(B127-B126)/Sheet2!$G$5 -> 20.23428819
A127: =A126+Sheet2!G$5 -> -3.01 | B127: -2.180548451 | C127: =(B128-B127)/Sheet2!$G$5 -> 20.09000091
A128: =A127+Sheet2!G$5 -> -3.00 | B128: -2.019989003 | C128: =(B129-B128)/Sheet2!$G$5 -> 19.94609686
A129: =A128+Sheet2!G$5 -> -2.99 | B129: -1.860579637 | C129: =(B130-B129)/Sheet2!$G$5 -> 19.80257605
A130: =A129+Sheet2!G$5 -> -2.99 | B130: -1.702317291 | C130: =(B131-B130)/Sheet2!$G$5 -> 19.65943846
A131: =A130+Sheet2!G$5 -> -2.98 | B131: =x^3-7*x+4 -> -1.545198902 | C131: =(B132-B131)/Sheet2!$G$5 -> 19.51668412
A132: =A131+Sheet2!G$5 -> -2.97 | B132: -1.389221407 | C132: =(B133-B132)/Sheet2!$G$5 -> 19.374313
A133: =A132+Sheet2!G$5 -> -2.96 | B133: -1.234381742 | C133: =(B134-B133)/Sheet2!$G$5 -> 19.23232512
A134: =A133+Sheet2!G$5 -> -2.95 | B134: -1.080676846 | C134: =(B135-B134)/Sheet2!$G$5 -> 19.09072047
A135: =A134+Sheet2!G$5 -> -2.95 | B135: -0.9281036558 | C135: =(B136-B135)/Sheet2!$G$5 -> 18.94949905
A136: =A135+Sheet2!G$5 -> -2.94 | B136: -0.7766591079 | C136: =(B137-B136)/Sheet2!$G$5 -> 18.80866087
A137: =A136+Sheet2!G$5 -> -2.93 | B137: -0.6263401399 | C137: =(B138-B137)/Sheet2!$G$5 -> 18.66820592
A138: =A137+Sheet2!G$5 -> -2.92 | B138: -0.477143689 | C138: =(B139-B138)/Sheet2!$G$5 -> 18.5281342
A139: =A138+Sheet2!G$5 -> -2.91 | B139: -0.3290666924 | C139: =(B140-B139)/Sheet2!$G$5 -> 18.38844572
A140: =A139+Sheet2!G$5 -> -2.91 | B140: -0.1821060872 | C140: =(B141-B140)/Sheet2!$G$5 -> 18.24914047
A141: =A140+Sheet2!G$5 -> -2.90 | B141: -0.03625881075 | C141: =(B142-B141)/Sheet2!$G$5 -> 18.11021845
A142: =A141+Sheet2!G$5 -> -2.89 | B142: 0.1084781999 | C142: =(B143-B142)/Sheet2!$G$5 -> 17.97167967
A143: =A142+Sheet2!G$5 -> -2.88 | B143: 0.2521080074 | C143: =(B144-B143)/Sheet2!$G$5 -> 17.83352412
A144: =A143+Sheet2!G$5 -> -2.87 | B144: 0.3946336747 | C144: =(B145-B144)/Sheet2!$G$5 -> 17.6957518
A145: =A144+Sheet2!G$5 -> -2.87 | B145: 0.5360582645 | C145: =(B146-B145)/Sheet2!$G$5 -> 17.55836272
A146: =A145+Sheet2!G$5 -> -2.86 | B146: 0.6763848397 | C146: =(B147-B146)/Sheet2!$G$5 -> 17.42135686
A147: =A146+Sheet2!G$5 -> -2.85 | B147: 0.8156164629 | C147: =(B148-B147)/Sheet2!$G$5 -> 17.28473425
A148: =A147+Sheet2!G$5 -> -2.84 | B148: 0.9537561972 | C148: =(B149-B148)/Sheet2!$G$5 -> 17.14849486
A149: =A148+Sheet2!G$5 -> -2.83 | B149: 1.090807105 | C149: =(B150-B149)/Sheet2!$G$5 -> 17.01263871
A150: =A149+Sheet2!G$5 -> -2.83 | B150: 1.22677225 | C150: =(B151-B150)/Sheet2!$G$5 -> 16.87716579
A151: =A150+Sheet2!G$5 -> -2.82 | B151: 1.361654694 | C151: =(B152-B151)/Sheet2!$G$5 -> 16.74207611
A152: =A151+Sheet2!G$5 -> -2.81 | B152: 1.4954575 | C152: =(B153-B152)/Sheet2!$G$5 -> 16.60736965
A153: =A152+Sheet2!G$5 -> -2.80 | B153: 1.628183731 | C153: =(B154-B153)/Sheet2!$G$5 -> 16.47304643
A154: =A153+Sheet2!G$5 -> -2.79 | B154: 1.759836449 | C154: =(B155-B154)/Sheet2!$G$5 -> 16.33910645
A155: =A154+Sheet2!G$5 -> -2.79 | B155: 1.890418719 | C155: =(B156-B155)/Sheet2!$G$5 -> 16.2055497
A156: =A155+Sheet2!G$5 -> -2.78 | B156: 2.019933601 | C156: =(B157-B156)/Sheet2!$G$5 -> 16.07237618
A157: =A156+Sheet2!G$5 -> -2.77 | B157: 2.14838416 | C157: =(B158-B157)/Sheet2!$G$5 -> 15.93958589
A158: =A157+Sheet2!G$5 -> -2.76 | B158: 2.275773458 | C158: =(B159-B158)/Sheet2!$G$5 -> 15.80717884
A159: =A158+Sheet2!G$5 -> -2.75 | B159: 2.402104558 | C159: =(B160-B159)/Sheet2!$G$5 -> 15.67515501
A160: =A159+Sheet2!G$5 -> -2.75 | B160: 2.527380522 | C160: =(B161-B160)/Sheet2!$G$5 -> 15.54351443
A161: =A160+Sheet2!G$5 -> -2.74 | B161: 2.651604413 | C161: =(B162-B161)/Sheet2!$G$5 -> 15.41225707
A162: =A161+Sheet2!G$5 -> -2.73 | B162: 2.774779295 | C162: =(B163-B162)/Sheet2!$G$5 -> 15.28138295
A163: =A162+Sheet2!G$5 -> -2.72 | B163: 2.89690823 | C163: =(B164-B163)/Sheet2!$G$5 -> 15.15089206
A164: =A163+Sheet2!G$5 -> -2.71 | B164: 3.01799428 | C164: =(B165-B164)/Sheet2!$G$5 -> 15.02078441
A165: =A164+Sheet2!G$5 -> -2.71 | B165: 3.138040509 | C165: =(B166-B165)/Sheet2!$G$5 -> 14.89105999
A166: =A165+Sheet2!G$5 -> -2.70 | B166: 3.25704998 | C166: =(B167-B166)/Sheet2!$G$5 -> 14.7617188
A167: =A166+Sheet2!G$5 -> -2.69 | B167: 3.375025754 | C167: =(B168-B167)/Sheet2!$G$5 -> 14.63276085
A168: =A167+Sheet2!G$5 -> -2.68 | B168: 3.491970896 | C168: =(B169-B168)/Sheet2!$G$5 -> 14.50418612
A169: =A168+Sheet2!G$5 -> -2.67 | B169: 3.607888467 | C169: =(B170-B169)/Sheet2!$G$5 -> 14.37599463
A170: =A169+Sheet2!G$5 -> -2.67 | B170: 3.722781531 | C170: =(B171-B170)/Sheet2!$G$5 -> 14.24818638
A171: =A170+Sheet2!G$5 -> -2.66 | B171: 3.836653151 | C171: =(B172-B171)/Sheet2!$G$5 -> 14.12076136
A172: =A171+Sheet2!G$5 -> -2.65 | B172: 3.949506388 | C172: =(B173-B172)/Sheet2!$G$5 -> 13.99371957
A173: =A172+Sheet2!G$5 -> -2.64 | B173: 4.061344307 | C173: =(B174-B173)/Sheet2!$G$5 -> 13.86706101
A174: =A173+Sheet2!G$5 -> -2.63 | B174: 4.172169969 | C174: =(B175-B174)/Sheet2!$G$5 -> 13.74078569
A175: =A174+Sheet2!G$5 -> -2.63 | B175: 4.281986438 | C175: =(B176-B175)/Sheet2!$G$5 -> 13.6148936
A176: =A175+Sheet2!G$5 -> -2.62 | B176: 4.390796777 | C176: =(B177-B176)/Sheet2!$G$5 -> 13.48938474
A177: =A176+Sheet2!G$5 -> -2.61 | B177: 4.498604048 | C177: =(B178-B177)/Sheet2!$G$5 -> 13.36425912
A178: =A177+Sheet2!G$5 -> -2.60 | B178: 4.605411313 | C178: =(B179-B178)/Sheet2!$G$5 -> 13.23951673
A179: =A178+Sheet2!G$5 -> -2.59 | B179: 4.711221637 | C179: =(B180-B179)/Sheet2!$G$5 -> 13.11515757
A180: =A179+Sheet2!G$5 -> -2.59 | B180: 4.816038081 | C180: =(B181-B180)/Sheet2!$G$5 -> 12.99118165
A181: =A180+Sheet2!G$5 -> -2.58 | B181: 4.919863708 | C181: =(B182-B181)/Sheet2!$G$5 -> 12.86758895
A182: =A181+Sheet2!G$5 -> -2.57 | B182: 5.022701582 | C182: =(B183-B182)/Sheet2!$G$5 -> 12.7443795
A183: =A182+Sheet2!G$5 -> -2.56 | B183: 5.124554765 | C183: =(B184-B183)/Sheet2!$G$5 -> 12.62155327
A184: =A183+Sheet2!G$5 -> -2.55 | B184: 5.22542632 | C184: =(B185-B184)/Sheet2!$G$5 -> 12.49911028
A185: =A184+Sheet2!G$5 -> -2.55 | B185: 5.325319309 | C185: =(B186-B185)/Sheet2!$G$5 -> 12.37705052
A186: =A185+Sheet2!G$5 -> -2.54 | B186: 5.424236795 | C186: =(B187-B186)/Sheet2!$G$5 -> 12.255374
A187: =A186+Sheet2!G$5 -> -2.53 | B187: 5.522181842 | C187: =(B188-B187)/Sheet2!$G$5 -> 12.1340807
A188: =A187+Sheet2!G$5 -> -2.52 | B188: 5.619157512 | C188: =(B189-B188)/Sheet2!$G$5 -> 12.01317065
A189: =A188+Sheet2!G$5 -> -2.51 | B189: 5.715166868 | C189: =(B190-B189)/Sheet2!$G$5 -> 11.89264382
A190: =A189+Sheet2!G$5 -> -2.51 | B190: 5.810212973 | C190: =(B191-B190)/Sheet2!$G$5 -> 11.77250023
A191: =A190+Sheet2!G$5 -> -2.50 | B191: 5.904298889 | C191: =(B192-B191)/Sheet2!$G$5 -> 11.65273987
A192: =A191+Sheet2!G$5 -> -2.49 | B192: 5.997427679 | C192: =(B193-B192)/Sheet2!$G$5 -> 11.53336274
A193: =A192+Sheet2!G$5 -> -2.48 | B193: 6.089602406 | C193: =(B194-B193)/Sheet2!$G$5 -> 11.41436885
A194: =A193+Sheet2!G$5 -> -2.47 | B194: 6.180826133 | C194: =(B195-B194)/Sheet2!$G$5 -> 11.29575819
A195: =A194+Sheet2!G$5 -> -2.47 | B195: =x^3-7*x+4 -> 6.271101923 | C195: =(B196-B195)/Sheet2!$G$5 -> 11.17753076
A196: =A195+Sheet2!G$5 -> -2.46 | B196: 6.360432838 | C196: =(B197-B196)/Sheet2!$G$5 -> 11.05968657
A197: =A196+Sheet2!G$5 -> -2.45 | B197: 6.448821941 | C197: =(B198-B197)/Sheet2!$G$5 -> 10.94222561
A198: =A197+Sheet2!G$5 -> -2.44 | B198: 6.536272296 | C198: =(B199-B198)/Sheet2!$G$5 -> 10.82514788
A199: =A198+Sheet2!G$5 -> -2.43 | B199: 6.622786964 | C199: =(B200-B199)/Sheet2!$G$5 -> 10.70845338
A200: =A199+Sheet2!G$5 -> -2.43 | B200: 6.708369009 | C200: =(B201-B200)/Sheet2!$G$5 -> 10.59214212
... 805 more rows

Sheet Sheet3
A1: =xMin -> -4 | B1: =9 -> 9
A2: =A1+dx -> -3.992007992 | B2: =9 -> 9
A3: -3.984015984 | B3: =9 -> 9
A4: -3.976023976 | B4: =9 -> 9
A5: -3.968031968 | B5: =9 -> 9
A6: -3.96003996 | B6: =9 -> 9
A7: -3.952047952 | B7: =9 -> 9
A8: -3.944055944 | B8: =9 -> 9
A9: -3.936063936 | B9: =9 -> 9
A10: -3.928071928 | B10: =9 -> 9
A11: -3.92007992 | B11: =9 -> 9
A12: -3.912087912 | B12: =9 -> 9
A13: -3.904095904 | B13: =9 -> 9
A14: -3.896103896 | B14: =9 -> 9
A15: -3.888111888 | B15: =9 -> 9
A16: -3.88011988 | B16: =9 -> 9
A17: -3.872127872 | B17: =9 -> 9
A18: -3.864135864 | B18: =9 -> 9
A19: -3.856143856 | B19: =9 -> 9
A20: -3.848151848 | B20: =9 -> 9
A21: -3.84015984 | B21: =9 -> 9
A22: -3.832167832 | B22: =9 -> 9
A23: -3.824175824 | B23: =9 -> 9
A24: -3.816183816 | B24: =9 -> 9
A25: -3.808191808 | B25: =9 -> 9
A26: -3.8001998 | B26: =9 -> 9
A27: -3.792207792 | B27: =9 -> 9
A28: -3.784215784 | B28: =9 -> 9
A29: -3.776223776 | B29: =9 -> 9
A30: -3.768231768 | B30: =9 -> 9
A31: -3.76023976 | B31: =9 -> 9
A32: -3.752247752 | B32: =9 -> 9
A33: -3.744255744 | B33: =9 -> 9
A34: -3.736263736 | B34: =9 -> 9
A35: -3.728271728 | B35: =9 -> 9
A36: -3.72027972 | B36: =9 -> 9
A37: -3.712287712 | B37: =9 -> 9
A38: -3.704295704 | B38: =9 -> 9
A39: -3.696303696 | B39: =9 -> 9
A40: -3.688311688 | B40: =9 -> 9
A41: -3.68031968 | B41: =9 -> 9
A42: -3.672327672 | B42: =9 -> 9
A43: -3.664335664 | B43: =9 -> 9
A44: -3.656343656 | B44: =9 -> 9
A45: -3.648351648 | B45: =9 -> 9
A46: -3.64035964 | B46: =9 -> 9
A47: -3.632367632 | B47: =9 -> 9
A48: -3.624375624 | B48: =9 -> 9
A49: -3.616383616 | B49: =9 -> 9
A50: -3.608391608 | B50: =9 -> 9
A51: -3.6003996 | B51: =9 -> 9
A52: -3.592407592 | B52: =9 -> 9
A53: -3.584415584 | B53: =9 -> 9
A54: -3.576423576 | B54: =9 -> 9
A55: -3.568431568 | B55: =9 -> 9
A56: -3.56043956 | B56: =9 -> 9
A57: -3.552447552 | B57: =9 -> 9
A58: -3.544455544 | B58: =9 -> 9
A59: -3.536463536 | B59: =9 -> 9
A60: -3.528471528 | B60: =9 -> 9
A61: -3.52047952 | B61: =9 -> 9
A62: -3.512487512 | B62: =9 -> 9
A63: -3.504495504 | B63: =9 -> 9
A64: -3.496503497 | B64: =9 -> 9
A65: -3.488511489 | B65: =9 -> 9
A66: =A65+dx -> -3.480519481 | B66: =9 -> 9
A67: -3.472527473 | B67: =9 -> 9
A68: -3.464535465 | B68: =9 -> 9
A69: -3.456543457 | B69: =9 -> 9
A70: -3.448551449 | B70: =9 -> 9
A71: -3.440559441 | B71: =9 -> 9
A72: -3.432567433 | B72: =9 -> 9
A73: -3.424575425 | B73: =9 -> 9
A74: -3.416583417 | B74: =9 -> 9
A75: -3.408591409 | B75: =9 -> 9
A76: -3.400599401 | B76: =9 -> 9
A77: -3.392607393 | B77: =9 -> 9
A78: -3.384615385 | B78: =9 -> 9
A79: -3.376623377 | B79: =9 -> 9
A80: -3.368631369 | B80: =9 -> 9
A81: -3.360639361 | B81: =9 -> 9
A82: -3.352647353 | B82: =9 -> 9
A83: -3.344655345 | B83: =9 -> 9
A84: -3.336663337 | B84: =9 -> 9
A85: -3.328671329 | B85: =9 -> 9
A86: -3.320679321 | B86: =9 -> 9
A87: -3.312687313 | B87: =9 -> 9
A88: -3.304695305 | B88: =9 -> 9
A89: -3.296703297 | B89: =9 -> 9
A90: -3.288711289 | B90: =9 -> 9
A91: -3.280719281 | B91: =9 -> 9
A92: -3.272727273 | B92: =9 -> 9
A93: -3.264735265 | B93: =9 -> 9
A94: -3.256743257 | B94: =9 -> 9
A95: -3.248751249 | B95: =9 -> 9
A96: -3.240759241 | B96: =9 -> 9
A97: -3.232767233 | B97: =9 -> 9
A98: -3.224775225 | B98: =9 -> 9
A99: -3.216783217 | B99: =9 -> 9
A100: -3.208791209 | B100: =9 -> 9
A101: -3.200799201 | B101: =9 -> 9
A102: -3.192807193 | B102: =9 -> 9
A103: -3.184815185 | B103: =9 -> 9
A104: -3.176823177 | B104: =9 -> 9
A105: -3.168831169 | B105: =9 -> 9
A106: -3.160839161 | B106: =9 -> 9
A107: -3.152847153 | B107: =9 -> 9
A108: -3.144855145 | B108: =9 -> 9
A109: -3.136863137 | B109: =9 -> 9
A110: -3.128871129 | B110: =9 -> 9
A111: -3.120879121 | B111: =9 -> 9
A112: -3.112887113 | B112: =9 -> 9
A113: -3.104895105 | B113: =9 -> 9
A114: -3.096903097 | B114: =9 -> 9
A115: -3.088911089 | B115: =9 -> 9
A116: -3.080919081 | B116: =9 -> 9
A117: -3.072927073 | B117: =9 -> 9
A118: -3.064935065 | B118: =9 -> 9
A119: -3.056943057 | B119: =9 -> 9
A120: -3.048951049 | B120: =9 -> 9
A121: -3.040959041 | B121: =9 -> 9
A122: -3.032967033 | B122: =9 -> 9
A123: -3.024975025 | B123: =9 -> 9
A124: -3.016983017 | B124: =9 -> 9
A125: -3.008991009 | B125: =9 -> 9
A126: -3.000999001 | B126: =9 -> 9
A127: -2.993006993 | B127: =9 -> 9
A128: -2.985014985 | B128: =9 -> 9
A129: -2.977022977 | B129: =9 -> 9
A130: =A129+dx -> -2.969030969 | B130: =9 -> 9
A131: -2.961038961 | B131: =9 -> 9
A132: -2.953046953 | B132: =9 -> 9
A133: -2.945054945 | B133: =9 -> 9
A134: -2.937062937 | B134: =9 -> 9
A135: -2.929070929 | B135: =9 -> 9
A136: -2.921078921 | B136: =9 -> 9
A137: -2.913086913 | B137: =9 -> 9
A138: -2.905094905 | B138: =9 -> 9
A139: -2.897102897 | B139: =9 -> 9
A140: -2.889110889 | B140: =9 -> 9
A141: -2.881118881 | B141: =9 -> 9
A142: -2.873126873 | B142: =9 -> 9
A143: -2.865134865 | B143: =9 -> 9
A144: -2.857142857 | B144: =9 -> 9
A145: -2.849150849 | B145: =9 -> 9
A146: -2.841158841 | B146: =9 -> 9
A147: -2.833166833 | B147: =9 -> 9
A148: -2.825174825 | B148: =9 -> 9
A149: -2.817182817 | B149: =9 -> 9
A150: -2.809190809 | B150: =9 -> 9
A151: -2.801198801 | B151: =9 -> 9
A152: -2.793206793 | B152: =9 -> 9
A153: -2.785214785 | B153: =9 -> 9
A154: -2.777222777 | B154: =9 -> 9
A155: -2.769230769 | B155: =9 -> 9
A156: -2.761238761 | B156: =9 -> 9
A157: -2.753246753 | B157: =9 -> 9
A158: -2.745254745 | B158: =9 -> 9
A159: -2.737262737 | B159: =9 -> 9
A160: -2.729270729 | B160: =9 -> 9
A161: -2.721278721 | B161: =9 -> 9
A162: -2.713286713 | B162: =9 -> 9
A163: -2.705294705 | B163: =9 -> 9
A164: -2.697302697 | B164: =9 -> 9
A165: -2.689310689 | B165: =9 -> 9
A166: -2.681318681 | B166: =9 -> 9
A167: -2.673326673 | B167: =9 -> 9
A168: -2.665334665 | B168: =9 -> 9
A169: -2.657342657 | B169: =9 -> 9
A170: -2.649350649 | B170: =9 -> 9
A171: -2.641358641 | B171: =9 -> 9
A172: -2.633366633 | B172: =9 -> 9
A173: -2.625374625 | B173: =9 -> 9
A174: -2.617382617 | B174: =9 -> 9
A175: -2.609390609 | B175: =9 -> 9
A176: -2.601398601 | B176: =9 -> 9
A177: -2.593406593 | B177: =9 -> 9
A178: -2.585414585 | B178: =9 -> 9
A179: -2.577422577 | B179: =9 -> 9
A180: -2.569430569 | B180: =9 -> 9
A181: -2.561438561 | B181: =9 -> 9
A182: -2.553446553 | B182: =9 -> 9
A183: -2.545454545 | B183: =9 -> 9
A184: -2.537462537 | B184: =9 -> 9
A185: -2.529470529 | B185: =9 -> 9
A186: -2.521478521 | B186: =9 -> 9
A187: -2.513486513 | B187: =9 -> 9
A188: -2.505494505 | B188: =9 -> 9
A189: -2.497502498 | B189: =9 -> 9
A190: -2.48951049 | B190: =9 -> 9
A191: -2.481518482 | B191: =9 -> 9
A192: -2.473526474 | B192: =9 -> 9
A193: -2.465534466 | B193: =9 -> 9
A194: =A193+dx -> -2.457542458 | B194: =9 -> 9
A195: -2.44955045 | B195: =9 -> 9
A196: -2.441558442 | B196: =9 -> 9
A197: -2.433566434 | B197: =9 -> 9
A198: -2.425574426 | B198: =9 -> 9
A199: -2.417582418 | B199: =9 -> 9
A200: -2.40959041 | B200: =9 -> 9
... 803 more rows

Sheet Defining Function
A1: Defining a Function in Excel
A3: Computers have very specific rules you must follow when defining a function. If you don't, the program will either not work at all or will work incorrectly.
A5: 1. The Variable used should be the one named in the instruction, usually x, though sometimes y, t, Q (for an angle theta),
A6: or even x and y (for a function of two variables).
A8: 2. Order of Operations: There five arithmetic operations, addition (+), subtraction (-), multiplication (*), division (/), and exponentiation or power (^). When computers see any of these operation symbols, they perform the indicated steps in a very particular order. First, the power is done. Second, products and quotients of adjacent terms is done. Third, and last, sums and differences of adjacent terms are done. So, in 10*x^3 + 5*x – 7, say with x = 2, the first pass only calculates 2^3 and ignores the multiplications and the sums and differences to calculate 2^3 = 8. The second pass looks at 10*8 + 5*2 – 7 and only does the multiplications, so it produces 80 + 10 - 7. The third pass looks at the +’s and –‘s to produce 80 + 10 – 7 = 83.
A10: 3. Parentheses If you need an operation involving more than two adjacent terms, as in Ö4^3 + 6^2, the computer would take the square root of 4 to produce 2^3 + 6^2; it would then cube the 2 and square the 6 to produce 8 + 36; and finally it would add the 8 and the 36 to get 44. If you actually wanted the square root of the entire expression, you would need to use parentheses, as in Ö(4^3 + 6^2) to tell the computer to do all the operations inside the parentheses before taking the square root. Therefore, it would calculate (4^3 + 6^2) = 64 + 36 = 100 and then take the square root of Ö100 = 10.
A12: 4. Built-In Functions Computer programs have built-in functions for most common algebraic functions. In Excel, the square root function is denoted by SQRT(…), so SQRT(100) = 10. Alternatively, you could enter it as 100^.5 or 100^(1/2); notice that parentheses are needed to have the ½ done first. The common trig functions are SIN (…), COS (…), and TAN (…), where the arguments are automatically interpreted as being in radians, not degrees. The logarithm to the base 10 is represented by LOG (…) and the logarithm with the base e, known as the natural logarithm, is LN (…). The corresponding exponential function with base e is EXP (x). If x is the variable, then each of these would be SQRT (x), SIN (x), COS (x), TAN (x), LOG (x) (for log with base 10 ), LN (x) (for log with base e ), and EXP (x).
